bitfinex/quotes_SOLUSD_20251009
["timestamp","ask_amount","ask_price","bid_price","bid_amount"]
[1760014031542,5.08987507,225.74,225.73,31.88]
[1760014031920,5.08987507,225.74,225.69,10.87647521]
[1760014032126,0.66,225.73,225.64,10.87647521]
[1760014032347,4.42987507,225.74,225.66,10.87647521]
[1760014032550,4.42987507,225.74,225.67,0.51]
[1760014032753,15.50260324,225.77,225.68,15.30752039]
[1760014033049,0.66,225.76,225.68,10.87647521]
[1760014033532,19.02393587,225.77,225.68,10.87647521]
[1760014033533,4.18133263,225.75,225.68,10.87647521]
[1760014033753,3.52133263,225.69,225.6,10.87647521]
[1760014033949,3.52133263,225.69,225.62,10.87647521]
[1760014033950,0.66,225.68,225.62,10.87647521]
[1760014034244,0.66,225.72,225.62,11.38647521]
[1760014034457,24.32133263,225.74,225.64,10.87647521]
[1760014034757,24.98133263,225.74,225.64,10.87647521]
[1760014034962,4.43007132,225.73,225.66,10.87647521]
[1760014035125,4.43007132,225.73,225.68,10.87647521]
[1760014035328,4.43007132,225.73,225.68,11.38647521]
[1760014035948,4.42967884,225.75,225.68,11.38647521]
[1760014036268,4.42967884,225.75,225.61,20.8]
[1760014036269,20.8,225.73,225.61,20.8]
[1760014036547,0.66,225.72,225.62,43.24647521]
[1760014036753,0.66,225.72,225.64,10.87647521]
[1760014036924,4.43046386,225.71,225.64,10.87647521]
[1760014037434,4.43046386,225.71,225.66,10.87647521]
[1760014037628,4.43046386,225.71,225.67,32.37]
[1760014037828,4.43046386,225.71,225.67,31.86]
[1760014038958,4.43026758,225.72,225.67,31.86]
[1760014039126,0.66,225.71,225.67,31.86]
[1760014039331,19.02726918,225.72,225.67,31.86]
[1760014039332,0.66,225.7,225.67,31.86]
[1760014039533,3.52133263,225.69,225.67,31.86]
[1760014039727,4.18133263,225.68,225.64,78.8]
[1760014040048,0.66,225.68,225.64,78.8]
[1760014040664,0.7,225.67,225.64,78.8]
[1760014040952,4.43144553,225.66,225.64,78.8]
[1760014042159,0.7,225.69,225.64,78.8]
[1760014042756,0.7,225.68,225.64,78.8]
[1760014043534,0.7,225.68,225.63,31.86]
[1760014045257,4.43183832,225.64,225.63,31.86]
[1760014045555,5.14183832,225.64,225.63,31.86]
[1760014046130,4.43152353,225.66,225.63,31.86]
[1760014046539,4.43125305,225.67,225.63,31.86]
[1760014047756,4.43125305,225.67,225.65,0.5]
[1760014048250,36.10866737,225.69,225.65,0.5]
[1760014048251,0.71,225.66,225.65,0.5]
[1760014049034,5.14144553,225.66,225.65,0.5]
[1760014049234,4.43144553,225.66,225.65,0.5]
[1760014049453,5.14144553,225.66,225.65,0.5]
[1760014049642,4.43144553,225.66,225.65,0.5]
[1760014050046,15.50868485,225.68,225.65,0.5]
[1760014050271,0.71,225.67,225.65,0.5]
[1760014050471,0.71,225.66,225.65,0.5]
[1760014050670,4.23133263,225.66,225.65,0.5]
[1760014051042,20.8,225.65,225.59,28.28]
[1760014051246,3.52133263,225.63,225.59,28.28]
[1760014051745,0.71,225.64,225.54,0.1]
[1760014051746,3.52133263,225.6,225.54,0.1]
[1760014052058,2.97453316,225.64,225.54,0.1]
[1760014052059,4.43321363,225.57,225.54,0.1]
[1760014052257,5.14321363,225.57,225.54,0.1]
[1760014052448,15.51624772,225.57,225.54,0.1]
[1760014052651,16.22624772,225.57,225.54,0.1]
[1760014052857,4.43299203,225.59,225.54,0.1]
[1760014053054,0.71,225.58,225.54,0.1]
[1760014053573,4.43299203,225.59,225.54,0.61]
[1760014053958,4.43299203,225.59,225.54,0.1]
[1760014054177,4.43321363,225.57,225.54,0.1]
[1760014054654,0.71,225.56,225.54,0.1]
[1760014054847,5.14321363,225.57,225.54,0.1]
[1760014055055,4.43321363,225.57,225.54,0.1]
[1760014055358,16.22624772,225.57,225.54,0.1]
[1760014055768,15.51624772,225.57,225.54,0.1]
[1760014055949,0.71,225.56,225.54,0.1]
[1760014056149,8.66493936,225.55,225.54,0.1]
[1760014058072,10.87647521,225.66,225.54,0.1]
[1760014058268,3.70896318,225.68,225.54,0.61]
[1760014058269,0.71,225.61,225.54,0.61]
[1760014058580,0.71,225.61,225.54,0.1]
[1760014059877,4.43262411,225.6,225.54,0.1]
[1760014060059,0.71,225.64,225.56,10.87647521]
[1760014061168,15.5122862,225.63,225.56,10.87647521]
[1760014061367,15.5122862,225.63,225.57,0.51]
[1760014061684,4.43203474,225.63,225.57,0.51]
[1760014061884,21.75295042,225.72,225.58,42.75647521]
[1760014061885,4.23133263,225.7,225.58,42.75647521]
[1760014062190,0.71,225.69,225.6,10.87647521]
[1760014062356,4.43046386,225.71,225.62,10.87647521]
[1760014062561,4.43046386,225.71,225.64,10.87647521]
[1760014062766,4.43046386,225.71,225.64,42.73647521]
[1760014063162,5.14046386,225.71,225.64,42.73647521]
[1760014063463,5.14046386,225.71,225.66,0.5]
[1760014063464,4.23133263,225.7,225.66,0.5]
[1760014063654,3.52133263,225.67,225.66,0.5]
[1760014063855,4.23133263,225.67,225.66,0.5]
[1760014064077,4.23133263,225.67,225.59,10.87647521]
[1760014064078,0.71,225.67,225.59,10.87647521]
[1760014064273,0.71,225.67,225.59,11.38647521]
[1760014064780,20.8,225.68,225.61,10.87647521]
[1760014064978,0.67,225.7,225.63,10.87647521]
[1760014065284,0.67,225.69,225.63,10.87647521]
[1760014065481,0.67,225.69,225.62,10.87647521]
[1760014065875,4.19133263,225.69,225.62,10.87647521]
[1760014066065,4.19133263,225.68,225.62,31.86]
[1760014066391,3.52133263,225.67,225.59,10.87647521]
[1760014066561,4.19133263,225.68,225.6,31.86]
[1760014066999,0.67,225.68,225.6,32.37]
[1760014067165,4.43124916,225.67,225.6,32.37]
[1760014068379,4.43124916,225.67,225.62,0.5]
[1760014068581,0.67,225.67,225.62,0.5]
[1760014069078,3.52133263,225.63,225.62,0.5]
[1760014069283,3.52133263,225.63,225.54,0.61]
[1760014069284,3.52133263,225.63,225.54,0.1]
[1760014069475,0.67,225.64,225.55,31.86]
[1760014069673,3.52133263,225.63,225.55,31.86]
[1760014070173,4.19133263,225.62,225.55,31.86]
[1760014070367,3.52133263,225.61,225.55,31.86]
[1760014070573,4.43262411,225.6,225.55,31.86]
[1760014070765,4.43262411,225.6,225.55,32.37]
[1760014070980,4.43262411,225.6,225.55,31.86]
[1760014071681,4.43262411,225.6,225.54,10.97647521]
[1760014071990,0.67,225.59,225.55,31.86]
[1760014072395,0.67,225.58,225.55,31.86]
[1760014072566,0.67,225.57,225.55,31.86]
[1760014072766,11.08052118,225.63,225.55,31.86]
[1760014072974,5.80909697,225.6,225.55,31.86]
[1760014073172,0.67,225.6,225.55,31.86]
[1760014073374,5.80909697,225.59,225.57,0.5]
[1760014073769,4.43301711,225.58,225.57,0.5]
[1760014074575,4.43262411,225.6,225.57,0.5]
[1760014075097,5.10262411,225.6,225.57,0.5]
[1760014075268,10.27172108,225.6,225.57,0.5]
[1760014076486,5.13262411,225.6,225.57,0.5]
[1760014076785,4.43301711,225.58,225.57,0.5]
[1760014076997,9.57211408,225.58,225.57,0.5]
[1760014077174,10.27211408,225.58,225.57,0.5]
[1760014078195,5.13301711,225.58,225.57,0.5]
[1760014078403,21.5,225.66,225.57,1.01]
[1760014078609,22.15459911,225.69,225.57,1.01]
[1760014078610,20.8,225.62,225.57,1.01]
[1760014079194,21.5,225.62,225.57,0.5]
[1760014079699,5.13909697,225.6,225.57,0.5]
[1760014079879,0.7,225.61,225.57,0.5]
[1760014080078,5.83909697,225.61,225.57,0.5]
[1760014080276,4.43262411,225.6,225.57,0.5]
[1760014080600,5.13909697,225.59,225.57,0.5]
[1760014080788,5.13909697,225.58,225.57,0.5]
[1760014080994,0.7,225.58,225.57,0.5]
[1760014081196,5.83909697,225.58,225.57,0.5]
[1760014082002,5.13909697,225.59,225.57,0.5]
[1760014082377,4.43301711,225.58,225.57,0.5]
[1760014082773,5.13301711,225.58,225.55,31.86]
[1760014082976,5.13909697,225.6,225.55,31.86]
[1760014083179,4.43203474,225.63,225.56,0.51]
[1760014083395,0.7,225.62,225.55,31.86]
[1760014084395,5.13909697,225.59,225.55,31.86]
[1760014084695,5.13909697,225.6,225.55,31.86]
[1760014085004,5.83909697,225.6,225.55,31.86]
[1760014085380,5.13909697,225.58,225.54,0.1]
[1760014085583,5.13909697,225.57,225.54,0.1]
[1760014085879,5.83909697,225.57,225.54,0.1]
[1760014086075,5.83909697,225.56,225.54,0.1]
[1760014086298,5.13909697,225.55,225.54,0.1]
[1760014086493,10.2727037,225.55,225.54,0.1]
[1760014087089,5.13360673,225.55,225.54,0.1]
[1760014087410,5.13360673,225.55,225.48,31.96]
[1760014087411,20.8,225.51,225.48,0.1]
[1760014087705,16.21762357,225.55,225.48,0.1]
[1760014087706,5.13909697,225.49,225.48,0.1]
[1760014088315,5.83909697,225.49,225.48,0.1]
[1760014088527,10.27388343,225.49,225.46,0.1]
[1760014088687,5.13909697,225.47,225.46,0.1]
[1760014089115,4.43439315,225.51,225.46,0.1]
[1760014089290,4.43439315,225.51,225.46,0.71]
[1760014089489,4.43418314,225.53,225.47,0.61]
[1760014089688,4.43418314,225.53,225.48,0.5]
[1760014090650,0.7,225.52,225.48,0.5]
[1760014090912,5.83909697,225.52,225.48,0.5]
[1760014091116,5.13909697,225.52,225.48,0.5]
[1760014091301,0.7,225.51,225.48,0.5]
[1760014091606,5.13909697,225.52,225.48,0.5]
[1760014091908,5.83909697,225.52,225.48,0.5]
[1760014092099,0.7,225.51,225.48,0.5]
[1760014092712,4.4345898,225.5,225.48,0.5]
[1760014093218,5.1345898,225.5,225.46,0.1]
[1760014093721,5.1345898,225.5,225.46,78.9]
[1760014093921,4.4345898,225.5,225.46,78.9]
[1760014094095,5.83909697,225.49,225.46,78.9]
[1760014094295,0.7,225.48,225.46,78.9]
[1760014094499,4.4345898,225.5,225.46,0.1]
[1760014094696,9.57349012,225.51,225.46,0.1]
[1760014095333,0.7,225.5,225.46,0.1]
[1760014096935,16.22175262,225.49,225.46,0.1]
[1760014097110,5.13909697,225.48,225.46,0.1]
[1760014097311,25.93909697,225.47,225.46,0.1]
[1760014097518,26.63909697,225.47,225.46,0.1]
[1760014098315,20.8,225.47,225.46,0.1]
[1760014098627,15.52175262,225.49,225.46,0.1]
[1760014098848,4.43453198,225.51,225.46,0.1]
[1760014099141,16.22051486,225.51,225.46,0.1]
[1760014099324,15.52051486,225.51,225.46,0.1]
[1760014099527,0.7,225.5,225.46,0.1]
[1760014099721,0.7,225.49,225.46,0.1]
[1760014100405,5.13909697,225.5,225.46,0.1]
[1760014100654,0.7,225.5,225.46,0.1]
[1760014100931,13.61370794,225.62,225.47,0.61]
[1760014100932,10.27271101,225.55,225.47,0.61]
[1760014101119,20.8,225.54,225.47,5.04515278]
[1760014101428,5.13909697,225.62,225.48,11.48647521]
[1760014101624,20.8,225.6,225.5,10.87647521]
[1760014101823,20.8,225.6,225.51,32.47]
[1760014102428,0.7,225.61,225.51,32.47]
[1760014102625,5.83909697,225.61,225.52,10.87647521]
[1760014102940,20.8,225.62,225.49,0.5]
[1760014102941,4.43301711,225.58,225.49,0.5]
[1760014103110,5.83909697,225.57,225.52,31.86]
[1760014103422,0.7,225.57,225.52,31.86]
[1760014104516,0.7,225.56,225.52,31.86]
[1760014104720,0.7,225.55,225.52,31.86]
[1760014105127,4.43380331,225.54,225.52,31.86]
[1760014105728,16.22163974,225.58,225.52,31.86]
[1760014105930,4.43321363,225.57,225.52,31.86]
[1760014106131,5.15321363,225.57,225.52,31.86]
[1760014107847,4.43321363,225.57,225.52,31.86]
[1760014108026,4.43321363,225.57,225.53,0.61]
[1760014108226,4.43321363,225.57,225.52,31.86]
[1760014108420,4.43321363,225.57,225.52,32.47]
[1760014108945,4.4328206,225.59,225.52,32.47]
[1760014109748,4.4328206,225.59,225.53,10.87647521]
[1760014110039,4.4328206,225.59,225.54,0.61]
[1760014110237,4.4328206,225.59,225.55,0.61]
[1760014110436,11.08090119,225.62,225.53,10.87647521]
[1760014110742,11.07943269,225.65,225.56,10.87647521]
[1760014110923,11.07943269,225.65,225.58,10.87647521]
[1760014111119,3.68937637,225.67,225.59,31.86]
[1760014111527,5.15125648,225.67,225.6,11.48647521]
[1760014111940,5.15125648,225.67,225.6,15.91901297]
[1760014112137,4.43125648,225.67,225.6,15.91901297]
[1760014112528,15.5093794,225.67,225.6,10.87647521]
[1760014112740,0.72,225.66,225.6,10.87647521]
[1760014114037,4.43164192,225.65,225.6,10.87647521]
[1760014114551,4.43164192,225.65,225.6,11.48647521]
[1760014114855,4.43164192,225.65,225.6,10.87647521]
[1760014115350,5.13909697,225.62,225.55,10.87647521]
[1760014115551,5.85909697,225.62,225.56,10.87647521]
[1760014115844,5.13909697,225.62,225.55,31.84]
[1760014116045,5.13909697,225.58,225.55,31.84]
[1760014116238,5.85909697,225.58,225.55,31.84]
[1760014116419,5.13909697,225.57,225.55,31.84]
[1760014116625,5.85909697,225.57,225.55,31.84]
[1760014117126,0.72,225.56,225.55,31.84]
[1760014117327,0.72,225.56,225.5,10.87647521]
[1760014117328,5.13909697,225.57,225.51,31.84]
[1760014117534,4.43341017,225.56,225.51,31.84]
[1760014118224,0.72,225.55,225.51,31.84]
[1760014118423,0.72,225.54,225.51,31.84]
[1760014118624,9.57250714,225.56,225.51,31.84]
[1760014119050,10.29250714,225.56,225.51,31.84]
[1760014119253,4.43341017,225.56,225.51,31.84]
[1760014120337,5.15341017,225.56,225.51,31.84]
[1760014120526,0.72,225.55,225.51,31.84]
[1760014120727,0.72,225.54,225.51,31.84]
[1760014121253,0.72,225.54,225.47,10.87647521]
[1760014121254,5.13909697,225.54,225.48,31.84]
[1760014121953,20.8,225.57,225.5,10.87647521]
[1760014121954,25.23322227,225.57,225.5,10.87647521]
[1760014122135,25.23322227,225.57,225.51,0.61]
[1760014122542,41.45535333,225.57,225.52,31.84]
[1760014122744,42.17535333,225.57,225.52,31.84]
[1760014123034,5.13909697,225.56,225.52,31.84]
[1760014123235,0.72,225.55,225.52,31.84]
[1760014123438,0.72,225.54,225.52,31.84]
[1760014123638,5.13909697,225.56,225.52,31.84]
[1760014123839,41.45535333,225.57,225.52,31.84]
[1760014124029,42.17535333,225.57,225.52,31.84]
[1760014124532,4.43360673,225.55,225.52,31.84]
[1760014125956,5.12360673,225.55,225.52,31.84]
[1760014127036,0.69,225.54,225.52,31.84]
[1760014127958,0.69,225.53,225.48,10.87647521]
[1760014128162,0.69,225.53,225.48,42.71647521]
[1760014128733,21.34809665,225.53,225.48,31.84]
[1760014129051,5.82909697,225.52,225.48,31.84]
[1760014129248,5.82909697,225.52,225.46,0.1]
[1760014129249,0.69,225.51,225.46,0.1]
[1760014129454,5.13909697,225.52,225.46,0.1]
[1760014129455,5.13909697,225.48,225.46,0.1]
[1760014129943,0.69,225.47,225.46,0.1]
[1760014130137,5.82909697,225.47,225.46,0.1]
[1760014130345,20.8,225.48,225.46,0.1]
[1760014130547,0.69,225.49,225.46,0.1]
[1760014130760,20.8,225.47,225.46,0.1]
[1760014131343,21.49,225.47,225.46,0.1]
[1760014131541,26.62909697,225.47,225.46,0.1]
[1760014132460,31.06427681,225.47,225.46,0.1]
[1760014132960,25.92517984,225.47,225.46,0.1]
[1760014133260,25.23517984,225.47,225.46,0.1]
[1760014135547,25.91517984,225.47,225.46,0.1]
[1760014135753,25.23517984,225.47,225.46,0.1]
[1760014137567,29.44054515,225.47,225.46,0.1]
[1760014138143,27.24508014,225.47,225.46,0.1]
[1760014141741,26.56508014,225.47,225.46,0.1]
[1760014141964,27.24508014,225.47,225.46,0.1]
[1760014144363,25.91517984,225.47,225.46,0.1]
[1760014144550,27.24508014,225.47,225.46,0.1]
[1760014146343,25.23517984,225.47,225.46,0.1]
[1760014146544,59.08508014,225.47,225.46,0.1]
[1760014147173,59.08508014,225.47,225.46,1e-08]
[1760014148363,57.07517984,225.47,225.46,1e-08]
[1760014148770,58.40508014,225.47,225.46,1e-08]
[1760014148989,59.08508014,225.47,225.46,1e-08]
[1760014149868,27.24508014,225.47,225.46,1e-08]
[1760014150176,59.08508014,225.47,225.46,1e-08]
[1760014152059,26.56508014,225.47,225.46,1e-08]
[1760014152374,58.40508014,225.47,225.46,1e-08]
[1760014152971,57.07517984,225.47,225.46,1e-08]
[1760014153171,25.23517984,225.47,225.46,1e-08]
[1760014155177,4.43500504,225.48,225.46,1e-08]
[1760014155370,4.43500504,225.48,225.46,0.61000001]
[1760014155580,22.84999955,225.53,225.47,0.61]
[1760014155581,0.68,225.53,225.47,0.61]
[1760014155802,3.71101427,225.63,225.48,10.87647521]
[1760014156092,4.43301711,225.58,225.5,10.87647521]
[1760014156393,4.43301711,225.58,225.52,10.87647521]
[1760014156695,1.3299003,225.61,225.54,10.87647521]
[1760014156696,4.43279234,225.6,225.54,10.87647521]
[1760014156855,4.43279234,225.6,225.51,10.87647521]
[1760014157057,4.43279234,225.6,225.54,0.61]
[1760014158197,15.51297065,225.62,225.54,0.61]
[1760014158777,15.51297065,225.62,225.55,10.87647521]
[1760014159273,15.51297065,225.62,225.54,11.48647521]
[1760014159462,15.51297065,225.62,225.55,10.87647521]
[1760014160292,0.68,225.61,225.55,10.87647521]
[1760014160584,4.43262411,225.6,225.55,10.87647521]
[1760014160886,4.43262411,225.6,225.54,0.61]
[1760014161594,5.11243925,225.61,225.54,5.04370885]
[1760014161779,0.68,225.68,225.55,11.48647521]
[1760014161984,0.68,225.68,225.56,0.61]
[1760014161985,17.51861218,225.68,225.56,0.61]
[1760014162186,17.51861218,225.68,225.57,42.69647521]
[1760014162371,17.51861218,225.68,225.59,10.87647521]
[1760014162572,2.0099003,225.67,225.59,10.87647521]
[1760014163067,2.0099003,225.67,225.59,11.48647521]
[1760014163262,25.91087599,225.69,225.6,0.61]
[1760014163472,20.8,225.68,225.6,0.61]
[1760014163901,2.0099003,225.67,225.59,10.87647521]
[1760014164886,1.3299003,225.63,225.55,31.82]
[1760014165076,1.3299003,225.63,225.55,32.43]
[1760014165279,1.3299003,225.61,225.55,31.82]
[1760014165483,1.3299003,225.59,225.55,31.82]
[1760014165999,2.0299003,225.59,225.55,31.82]
[1760014166690,1.3299003,225.58,225.55,31.82]
[1760014166895,4.43321363,225.57,225.55,31.82]
[1760014167190,0.7,225.56,225.5,10.87647521]
[1760014167400,0.7,225.56,225.5,42.67647521]
[1760014167772,4.43321363,225.57,225.5,42.67647521]
[1760014167972,11.78169615,225.6,225.51,0.61]
[1760014167973,4.43294467,225.59,225.51,0.61]
[1760014168186,1.3299003,225.58,225.51,0.61]
[1760014168999,4.43321363,225.57,225.51,0.61]
[1760014169496,4.43321363,225.57,225.5,42.67647521]
[1760014169497,17.54614802,225.57,225.5,42.67647521]
[1760014169793,1.3299003,225.55,225.5,31.8]
[1760014169966,2.0299003,225.55,225.5,31.8]
[1760014170589,4.43380331,225.54,225.5,31.8]
[1760014171398,4.43380331,225.54,225.49,31.8]
[1760014171589,4.43380331,225.54,225.49,32.41]
[1760014171792,4.43380331,225.54,225.49,0.61]
[1760014171984,4.43380331,225.54,225.49,32.41]
[1760014172179,4.43380331,225.54,225.49,31.8]
[1760014172391,4.43360665,225.56,225.51,10.87647521]
[1760014172592,4.43360665,225.56,225.52,0.61]
[1760014172898,15.51624772,225.57,225.51,10.87647521]
[1760014173303,15.51624772,225.57,225.51,42.67647521]
[1760014174707,4.43321363,225.57,225.51,42.67647521]
[1760014174881,0.7,225.56,225.51,31.8]
[1760014175204,2.0299003,225.55,225.51,31.8]
[1760014175509,1.3299003,225.53,225.46,1e-08]
[1760014175678,1.3299003,225.51,225.46,1e-08]
[1760014176076,0.7,225.5,225.46,1e-08]
[1760014176493,2.0299003,225.49,225.46,1e-08]
[1760014176900,5.13498314,225.48,225.46,1e-08]
[1760014177412,2.0299003,225.47,225.46,1e-08]
[1760014177778,0.7,225.47,225.46,1e-08]
[1760014178889,25.93517984,225.47,225.46,1e-08]
[1760014180204,28.90221477,225.47,225.46,1e-08]
[1760014181213,30.23211507,225.47,225.46,1e-08]
[1760014181381,59.06508014,225.47,225.46,1e-08]
[1760014181577,27.26508014,225.47,225.46,1e-08]
[1760014185139,30.23034588,225.47,225.46,1e-08]
[1760014186119,32.00697871,225.47,225.46,1e-08]
[1760014186320,42.88345392,225.47,225.46,1e-08]
[1760014187319,76.14730276,225.47,225.41,1e-08]
[1760014187620,1.3299003,225.42,225.41,1e-08]
[1760014187921,33.1299003,225.42,225.41,1e-08]
[1760014188290,35.57676989,225.42,225.41,1e-08]
[1760014188491,40.01293349,225.42,225.41,1e-08]
[1760014188994,36.9061636,225.42,225.41,1e-08]
[1760014189305,38.2360639,225.42,225.41,1e-08]
[1760014190530,20.8,225.39,225.33,0.1]
[1760014190821,1.3299003,225.34,225.33,0.1]
[1760014190991,33.1299003,225.34,225.33,0.1]
[1760014192218,33.1299003,225.34,225.32,0.1]
[1760014192219,33.7999003,225.34,225.32,0.1]
[1760014192429,0.67,225.33,225.32,0.1]
[1760014192605,5.10793547,225.33,225.32,0.1]
[1760014193621,5.10793547,225.33,225.32,1e-08]
[1760014193824,5.10793547,225.33,225.31,1e-08]
[1760014194024,20.8,225.3,225.25,0.1]
[1760014194326,22.1299003,225.26,225.25,0.1]
[1760014194523,58.36921486,225.26,225.25,0.1]
[1760014195023,59.03921486,225.26,225.25,0.1]
[1760014195225,58.36921486,225.26,225.25,0.1]
[1760014196117,59.12155085,225.26,225.25,0.1]
[1760014198210,25.23931456,225.26,225.25,0.1]
[1760014198408,20.8,225.26,225.25,0.71]
[1760014198601,20.8,225.26,225.25,0.1]
[1760014198801,4.43912729,225.27,225.25,0.1]
[1760014199024,4.43912729,225.27,225.25,0.71]
[1760014199574,4.43912729,225.27,225.25,0.1]
[1760014199854,6.52136358,225.27,225.25,0.1]
[1760014200658,38.32136358,225.27,225.25,0.1]
[1760014201160,2.08223629,225.26,225.25,0.1]
[1760014202959,7.24155085,225.26,225.25,0.1]
[1760014203280,25.23931456,225.26,225.25,0.1]
[1760014203463,25.23931456,225.26,225.25,0.71]
[1760014203464,52.6,225.26,225.25,0.71]
[1760014203627,25.23931456,225.26,225.25,0.1]
[1760014203830,59.12155085,225.26,225.25,0.1]
[1760014204032,57.03931456,225.26,225.25,0.1]
[1760014204350,59.12155085,225.26,225.25,0.1]
[1760014205537,59.84155085,225.26,225.25,0.1]
[1760014205739,59.12155085,225.26,225.25,0.1]
[1760014206664,59.84155085,225.26,225.25,1e-08]
[1760014208968,59.86155085,225.26,225.25,1e-08]
[1760014209744,4.43931456,225.26,225.25,0.61000001]
[1760014210073,4.43911536,225.28,225.25,0.61000001]
[1760014210255,4.43867128,225.3,225.25,1e-08]
[1760014210456,31.8,225.29,225.25,0.50000001]
[1760014210787,4.43892045,225.28,225.26,0.61]
[1760014210977,15.53622158,225.28,225.25,0.50000001]
[1760014211170,36.25892045,225.28,225.25,1e-08]
[1760014212254,4.43892045,225.28,225.26,0.61]
[1760014212452,4.43892045,225.28,225.27,0.61]
[1760014212653,2.31749004,225.35,225.27,0.61]
[1760014212654,13.176293,225.35,225.27,0.61]
[1760014212845,31.8,225.34,225.27,0.61]
[1760014214268,36.33159831,225.35,225.27,5.04910989]
[1760014214451,4.4375416,225.35,225.28,11.48647521]
[1760014214656,4.4375416,225.35,225.29,0.61]
[1760014216272,52.6,225.41,225.3,10.87647521]
[1760014216484,2.94962446,225.4,225.32,10.87647521]
[1760014216653,36.23638273,225.41,225.28,36.33619793]
[1760014216654,36.23638273,225.41,225.34,10.87647521]
[1760014216852,5.15638273,225.41,225.33,0.61]
[1760014217276,8.10569185,225.41,225.33,0.61]
[1760014217659,7.38569185,225.41,225.34,10.87647521]
[1760014217861,15.52728375,225.41,225.33,0.61]
[1760014218574,11.09090102,225.41,225.33,0.61]
[1760014218959,14.04389857,225.41,225.33,0.61]
[1760014219655,4.43577004,225.44,225.34,10.87647521]
[1760014219858,7.39083097,225.44,225.36,10.87647521]
[1760014220083,2.95506093,225.44,225.37,0.61]
[1760014220257,2.95506093,225.43,225.37,0.61]
[1760014220453,2.95506093,225.44,225.38,10.87647521]
[1760014220654,7.39092212,225.44,225.38,10.87647521]
[1760014220868,4.43586119,225.44,225.38,10.87647521]
[1760014221088,2.95506093,225.43,225.38,10.87647521]
[1760014221374,2.95506093,225.43,225.36,10.87647521]
[1760014221679,2.95506093,225.43,225.36,11.48647521]
[1760014222684,4.4361636,225.42,225.36,11.48647521]
[1760014222888,4.4361636,225.42,225.33,36.23776891]
[1760014223100,5.75729722,225.41,225.33,10.87647521]
[1760014224085,4.43655723,225.4,225.33,10.87647521]
[1760014224586,0.72,225.39,225.3,0.61]
[1760014224888,18.33018659,225.4,225.31,11.48647521]
[1760014225863,18.33018659,225.4,225.31,15.31474776]
[1760014226072,18.33018659,225.4,225.32,0.61]
[1760014226783,18.33018659,225.4,225.31,10.87647521]
[1760014226974,0.66,225.39,225.31,10.87647521]
[1760014227588,0.66,225.39,225.31,15.31470715]
[1760014228158,4.43635928,225.42,225.33,10.87647521]
[1760014228361,7.39949385,225.42,225.35,10.87647521]
[1760014228562,7.39949385,225.42,225.36,0.61]
[1760014228958,4.43635928,225.42,225.36,0.61]
[1760014229162,20.8,225.46,225.37,10.87647521]
[1760014229163,2.08223629,225.46,225.37,10.87647521]
[1760014229362,22.06438471,225.73,225.36,5.0472794]
[1760014229363,0.2,225.49,225.39,10.87647521]
[1760014229614,0.2,225.49,225.4,0.61]
[1760014230170,21.0,225.49,225.4,0.61]
[1760014230589,25.43487608,225.49,225.4,5.04640314]
[1760014231397,25.43487608,225.49,225.4,0.61]
[1760014231601,25.43487608,225.49,225.37,0.61]
[1760014231602,0.66,225.48,225.37,0.61]
[1760014231797,2.08223629,225.47,225.37,24.69557257]
[1760014231996,0.66,225.46,225.37,24.69557257]
[1760014232196,0.66,225.45,225.37,29.13253607]
[1760014232394,2.08223629,225.45,225.37,13.20909736]
[1760014232585,4.43596681,225.43,225.37,10.87647521]
[1760014232986,0.66,225.42,225.37,10.87647521]